Cogmind - Beta 12 @@@ ROGUE MODE // 2023.04.12 @ 07:47:16 Player: Hekatonkheires Result: Destroyed by as-12364 with Assembled Heavy Rifle Performance ------------- Evolutions (0) 0 Regions Visited (4) 800 Robots Destroyed (24) 120 Value Destroyed (567) 567 Prototype IDs (2) 40 Alien Tech Used (0) 0 Bonus (0) 0 TOTAL SCORE: 1527 Bonus ------- None Cogmind --------- Core Integrity 0/250 Matter 300/300 Energy 100/100 System Corruption 1% Temperature Cool (0) Movement Rolling (110) Ox2 Location -9/Mines Parts ------- > --- POWER (1) -------- (None) > --- PROPULSION (2) --- Wheel Wheel (fused) > --- UTILITY (2) ------ High-capacity Storage Unit Signal Interpreter > --- WEAPON (2) ------- Heavy Assault Rifle Heavy Assault Rifle > --- INVENTORY (20) --- Wheel Improved Heat Sink High-capacity Battery (250) High-capacity Battery (250) Medium Matter Pod (100) High-capacity Matter Pod (184) Light Armor Plating Light EM Pulse Cannon Light EM Pulse Cannon Light EM Pulse Cannon Heavy Assault Rifle Heavy Assault Rifle Mining Laser Peak State ------------ > --- POWER ------------ Light Ion Engine > --- PROPULSION ------- Light Treads Light Treads > --- UTILITY ---------- Medium Storage Unit Structural Scanner > --- WEAPON ----------- Light EM Pulse Cannon Light EM Pulse Cannon > --- INVENTORY -------- Aluminum Leg Aluminum Leg Wheel Compact Wheel Compact Wheel Heat Sink Signal Interpreter Utility Shielding EM Pulse Gun Light Assault Rifle [Rating: 10] Favorites ----------- Power Light Ion Engine Engine Light Ion Engine Propulsion Wheel Treads Light Treads Wheel Wheel Utility Medium Storage Unit Device Structural Scanner Storage Medium Storage Unit Processor Signal Interpreter Weapon Heavy Assault Rifle Energy Gun EM Pulse Gun Energy Cannon Light EM Pulse Cannon Ballistic Gun Heavy Assault Rifle Build | -11 -10 -10 -10 -9 ------- Run | Jun Mat Min Exi Min Slots Evolved . | . . . . . Power . | . . . . . Propulsion . | . . . . . Utility . | . . . . . Weapon . | . . . . . Parts Attached 21 | 6 12 2 1 . Power 4 | . 3 1 . . Engine 4 | . 3 1 . . Core . | . . . . . Reactor . | . . . . . Propulsion 5 | 2 2 1 . . Treads 2 | 2 . . . . Leg . | . . . . . Wheel 3 | . 2 1 . . Hover . | . . . . . Flight . | . . . . . Utility 5 | 1 3 . 1 . Device 1 | . 1 . . . Storage 3 | 1 1 . 1 . Processor 1 | . 1 . . . Hackware . | . . . . . Protection . | . . . . . Artifact . | . . . . . Weapon 7 | 3 4 . . . Energy Gun 1 | 1 . . . . Energy Cannon 2 | . 2 . . . Ballistic Gun 4 | 2 2 . . . Ballistic Cannon . | . . . . . Launcher . | . . . . . Special Weapon . | . . . . . Impact Weapon . | . . . . . Slashing Weapon . | . . . . . Piercing Weapon . | . . . . . Special Melee Weapon . | . . . . . Unidentified Prototypes . | . . . . . Parts Lost 5 | . 2 3 . . Power 3 | . 1 2 . . Propulsion 2 | . 1 1 . . Utility . | . . . . . Weapon . | . . . . . Highest Loss Streak 2 | . 1 2 . . To Critical Strikes . | . . . . . Average Slot Usage (%) 91 | . 94 92 85 85 Engine 9 | . 13 6 . . Treads 13 | . 24 . . . Wheel 14 | . 3 28 28 28 Device 4 | . 7 . . . Storage 14 | . 14 14 14 14 Processor 7 | . 1 14 14 14 Energy Gun 5 | . 9 . . . Ballistic Gun 22 | . 17 28 28 28 Naked Turns . | . . . . . Heaviest Build 46 | 9 22 19 46 46 Greatest Support 40 | 40 40 20 20 20 Greatest Overweight (x) 2 | 2 1 . 2 2 Average Overweight (x) . | . . . . 2 Largest Inventory Capacity 20 | 8 10 10 20 20 Average Capacity 10 | 7 9 10 12 20 Most Carried 13 | 7 10 10 13 13 Average Carried 8 | 3 8 9 10 13 Final Capacity 20 | 8 10 10 20 20 Final Carried 13 | 7 10 10 13 13 Class Distribution -------------------- 100% | Mutant Dominant Class ---------------- Mutant | -10/Materials Mutant | -10/Mines Mutant | -10/Exiles Mutant | -9/Mines Resources | -11 -10 -10 -10 -9 ----------- Run | Jun Mat Min Exi Min Matter Collected 857 | 226 360 255 16 . Remotely . | . . . . . Salvage Created 814 | . 589 225 . . Parts 47 | . 32 15 . . Haulers Intercepted 1 | . 1 . . . Recyclers Shooed . | . . . . . Parts Field Recycled . | . . . . . Retrieved Matter . | . . . . . Parts Self-Destructed . | . . . . . Prevented . | . . . . . Kills | -11 -10 -10 -10 -9 ------- Run | Jun Mat Min Exi Min Combat Hostiles Destroyed 17 | . 11 6 . . Guns 17 | . 11 6 . . Classes Destroyed 7 | . 7 . . . Worker 2 | . 1 1 . . Builder 1 | . 1 . . . Hauler 1 | . 1 . . . Recycler 1 | . 1 . . . Watcher 2 | . 2 . . . Swarmer 5 | . 3 2 . . Grunt 12 | . 8 4 . . Best Kill Streak 4 | . 4 3 . . Combat Bots Only 3 | . 3 2 . . Max Kills in Single Turn 2 | . 2 1 . . Gunslinging . | . . . . . Exploded . | . . . . . Melee . | . . . . . Uniques/NPCs Destroyed . | . . . . . Combat | -11 -10 -10 -10 -9 -------- Run | Jun Mat Min Exi Min Damage Taken 926 | . 529 330 . 67 Core 262 | . 105 123 . 34 Absorbed by Shields . | . . . . . Core Remaining (%) 100 | 100 . . . . Volleys Fired 71 | . 48 23 . . Largest 2 | . 2 2 . . Hottest 112 | . 112 46 . . Shots Fired 142 | . 96 46 . . Gun 139 | . 93 46 . . Cannon 3 | . 3 . . . Launcher . | . . . . . Special . | . . . . . Kinetic 113 | . 67 46 . . Thermal . | . . . . . Explosive . | . . . . . Electromagnetic 29 | . 29 . . . Robot Hit Streak 12 | . 12 7 . . Robot Miss Streak 4 | . 3 4 . . Penetration Max . | . . . . . Secondary Targets 1 | . 1 . . . Max Gunslinging Chain 1 | . 1 . . . Shots Hit Robots 83 | . 58 25 . . Core Hits 33 | . 24 9 . . Critical Kills . | . . . . . Critical Parts Destroyed . | . . . . . Critical Strikes . | . . . . . Melee Attacks . | . . . . . Impact . | . . . . . Slashing . | . . . . . Piercing . | . . . . . Sneak Attacks . | . . . . . Combat Hostiles . | . . . . . Follow-up Attacks . | . . . . . Damage Inflicted 1455 | . 1028 427 . . Guns 1215 | . 815 400 . . Cannons 19 | . 19 . . . Explosions 194 | . 194 . . . Melee . | . . . . . Ramming 27 | . . 27 . . Kinetic 967 | . 567 400 . . Thermal 194 | . 194 . . . Explosive . | . . . . . Electromagnetic 267 | . 267 . . . Impact . | . . . . . Slashing . | . . . . . Piercing . | . . . . . Highest Corruption 1 | . 1 1 1 1 Average Corruption 1 | . 1 1 1 1 Corruption Purged . | . . . . . Corruption Blocked . | . . . . . Effects 17 | . 8 6 3 . Message Errors 3 | . 1 1 1 . Matter Fused 6 | . 4 1 1 . Heat Flow Errors 2 | . 1 1 . . Energy Discharges 1 | . . 1 . . Parts Rejected 1 | . 1 . . . Parts Fused 1 | . . . 1 . Data Loss (minor) 2 | . 1 1 . . Alerts 1 | . . 1 . . Overload Shots . | . . . . . Overflow Damage . | . . . . . Projectiles . | . . . . . Explosions . | . . . . . Melee . | . . . . . Knockbacks . | . . . . . Impact . | . . . . . Kinetic . | . . . . . Secondary . | . . . . . Self-Inflicted Damage 97 | . 84 13 . . Shots 2 | . 2 . . . Rammed 3 | . . 3 . . Targets Rammed 3 | . . 3 . . Kicked . | . . . . . Crushed . | . . . . . Highest Temperature 228 | . 208 228 . . Average Temperature 44 | . 37 64 . . Received Heat Transfer 279 | . 165 114 . . Siege Activations . | . . . . . Robots Corrupted . | . . . . . Combat Hostiles . | . . . . . Parts Fried . | . . . . . Impact Corruptions . | . . . . . Robots Melted . | . . . . . Combat Hostiles . | . . . . . Parts Melted 1 | . 1 . . . Heat Transferred 150 | . 150 . . . Parts Sabotaged . | . . . . . Parts Stolen . | . . . . . Parts Stripped . | . . . . . Power Chain Reactions 2 | . 2 . . . Missiles Intercepted . | . . . . . Alert | -11 -10 -10 -10 -9 ------- Run | Jun Mat Min Exi Min Peak Influence 261 | . 182 261 . . Initial 61 | . . 61 . . Average 101 | . 74 184 . . Maximum Alert Level 1 | . . 1 . . Low Security (%) 88 | 100 100 57 . 100 Level 1 11 | . . 42 . . Level 2 . | . . . . . Level 3 . | . . . . . Level 4 . | . . . . . Level 5 . | . . . . . High Security . | . . . . . Max Security . | . . . . . Squads Dispatched 4 | . 4 . . . Investigation 1 | . 1 . . . Extermination . | . . . . . Reinforcement 3 | . 3 . . . Assault . | . . . . . Garrison . | . . . . . Intercept . | . . . . . Searches Triggered . | . . . . . Construction Impeded . | . . . . . Haulers Reinforced . | . . . . . Active Scanning Responses . | . . . . . Cargo Convoy Interrupts . | . . . . . Stealth | -11 -10 -10 -10 -9 --------- Run | Jun Mat Min Exi Min Distress Signals 3 | . 3 . . . Communications Jammed . | . . . . . Distress Signals . | . . . . . Times Spotted 46 | . 20 11 . 15 Peak Tracking Total 20 | . 3 3 . 20 Tactical Retreats 3 | . . 3 . . Traps | -11 -10 -10 -10 -9 ------- Run | Jun Mat Min Exi Min Traps Triggered 2 | . 2 . . . Indirectly . | . . . . . Trap Hack Attempts . | . . . . . Triggered . | . . . . . Disarmed . | . . . . . Reprogrammed . | . . . . . Reused . | . . . . . Traps Extracted . | . . . . . Installed . | . . . . . Triggered . | . . . . . Machines | -11 -10 -10 -10 -9 ---------- Run | Jun Mat Min Exi Min Machines Disabled 1 | . 1 . . . Max in Single Turn 1 | . 1 . . . Machines Repaired . | . . . . . Machines Sabotaged . | . . . . . Overloaded Fab Kills . | . . . . . Hacking | -11 -10 -10 -10 -9 --------- Run | Jun Mat Min Exi Min Machines Accessed 8 | . 4 . 4 . Terminals 4 | . 4 . . . Fabricators . | . . . . . Repair Stations . | . . . . . Recycling Units . | . . . . . Scanalyzers . | . . . . . Garrison Access . | . . . . . Total Hacks 23 | . 19 . 4 . Successful 13 | . 9 . 4 . Failed 9 | . 9 . . . Catastrophic 2 | . 2 . . . Database Lockouts 1 | . 1 . . . Manual 16 | . 15 . 1 . Terminals 19 | . 19 . . . Fabricators . | . . . . . Repair Stations . | . . . . . Recycling Units . | . . . . . Scanalyzers . | . . . . . Garrison Access . | . . . . . Terminal Hacks 9 | . 5 . 4 . Record 4 | . . . 4 . Robot Analysis 2 | . 2 . . . Prototype ID Bank 1 | . 1 . . . Branch Access Points 1 | . 1 . . . Emergency Access Points 1 | . 1 . . . Fabricator Hacks . | . . . . . Repair Station Hacks . | . . . . . Recycling Unit Hacks . | . . . . . Scanalyzer . | . . . . . Garrison Access Hacks . | . . . . . Unauthorized Hacks 4 | . 4 . . . Terminals 4 | . 4 . . . Assimilate 1 | . 1 . . . Botnet 2 | . 2 . . . Operators 1 | . 1 . . . Fabricators . | . . . . . Repair Stations . | . . . . . Recycling Units . | . . . . . Scanalyzers . | . . . . . Garrison Access . | . . . . . Data Cores Recovered . | . . . . . Used . | . . . . . Hacking Detections 3 | . 3 . . . Full Trace Events . | . . . . . Feedback Events . | . . . . . Feedback Blocked . | . . . . . Robot Schematics Acquired . | . . . . . Robots Built . | . . . . . Authchips . | . . . . . Time . | . . . . . Total Robot Build Rating . | . . . . . Part Schematics Acquired . | . . . . . Parts Built . | . . . . . Authchips . | . . . . . Time . | . . . . . Total Part Build Rating . | . . . . . Parts Repaired . | . . . . . Time . | . . . . . Parts Recycled . | . . . . . Recycled Matter . | . . . . . Retrieved Matter . | . . . . . Retrieved Components . | . . . . . Parts Scanalyzed . | . . . . . Part Schematics Acquired . | . . . . . Parts Damaged . | . . . . . Bothacking | -11 -10 -10 -10 -9 ------------ Run | Jun Mat Min Exi Min Used RIF Installer . | . . . . . Robots Hacked . | . . . . . Non-combat . | . . . . . Combat . | . . . . . Robot Hacks Applied . | . . . . . Relay Couplers Released . | . . . . . Fabnet Peak Effective % . | . . . . . Robots Rewired . | . . . . . Allies Hacked . | . . . . . Hacks Repelled . | . . . . . Allies | -11 -10 -10 -10 -9 -------- Run | Jun Mat Min Exi Min Total Allies 3 | . . 3 . . Largest Group 3 | . . 3 3 2 Highest-Rated Group 40 | . . 40 40 24 Highest-Rated Ally 16 | . . 16 16 16 Total Orders . | . . . . . Ally Attacks 6 | . . . . 6 Total Damage 59 | . . . . 59 Kills 1 | . . . . 1 Allies Corrupted . | . . . . . Allies Melted . | . . . . . Intel | -11 -10 -10 -10 -9 ------- Run | Jun Mat Min Exi Min Robot Analysis Total 2 | . 2 . . . Derelict Logs Recovered 1 | . . 1 . . Drone Launches . | . . . . . Drone Recoveries . | . . . . . Exploration | -11 -10 -10 -10 -9 ------------- Run | Jun Mat Min Exi Min Turns Passed 2024 | 76 1060 441 438 9 Spaces Moved 1430 | 44 512 357 509 8 Core 10 | 10 . . . . Treads 395 | 34 361 . . . Legs . | . . . . . Wheels 1025 | . 151 357 509 8 Hover . | . . . . . Flight . | . . . . . Fastest Speed 50 | 50 80 80 80 110 Average Speed 104 | 141 136 80 85 110 Slowest Speed 160 | 160 160 80 110 110 Overloaded Moves . | . . . . . Propulsion Burnouts . | . . . . . Robots Hopped . | . . . . . Cave-ins Triggered . | . . . . . Exploration Rate (%) 55 | 4 93 84 89 9 Regions Visited 4 Branch Regions 3 Pre-discovered Areas . | . . . . . Known Exits Taken 3 | . 1 1 1 . Unknown Exits Taken 1 | 1 . . . . Scrap Searched 2 | . . 2 . . Spaces Dug . | . . . . . Terrain Destroyed 6 | . 6 . . . Melee . | . . . . . Projectile . | . . . . . AOE 6 | . 6 . . . Terrain Rammed . | . . . . . Walls Destroyed . | . . . . . Machines Disabled . | . . . . . Actions | -11 -10 -10 -10 -9 --------- Run | Jun Mat Min Exi Min Total 1822 | 55 778 468 513 8 Wait 256 | . 179 77 . . Move 1426 | 43 511 356 508 8 Hop . | . . . . . Pick Up 28 | 6 15 4 3 . Fast Attach 12 | 5 6 1 . . Attach 4 | . 3 1 . . Detach . | . . . . . Swap 5 | 1 3 . 1 . Drop 17 | . 13 3 1 . Fire 71 | . 48 23 . . Melee . | . . . . . Ram 3 | . . 3 . . Kick . | . . . . . Crush . | . . . . . Escape Stasis . | . . . . . Rewire . | . . . . . Trap . | . . . . . Miscellaneous . | . . . . . Route ------- -11/Junkyard -10/Materials (discovered 4 exits: *Mat x3 / *Min) -10/Mines (discovered 3 exits: *Mat x2 / *Exi) -10/Exiles -9/Mines History --------- Turn | Location | Event 2 | -11/Junkyard | Discovered new exit (range 16) 77 | -11/Junkyard | Entered Materials 144 | -10/Materials | Central database locked down 308 | -10/Materials | Build established: Mutant 698 | -10/Materials | Discovered new exit (range 6) 940 | -10/Materials | Identified exit to Mines 942 | -10/Materials | Discovered new exit (range 16) 1048 | -10/Materials | Discovered new exit (range 16) 1137 | -10/Materials | Entered Mines 1143 | -10/Mines | Core integrity fell below 50% 1239 | -10/Mines | Learned Materials garrison access intel 1266 | -10/Mines | Core integrity fell below 20% 1288 | -10/Mines | Discovered new exit (range 7) 1433 | -10/Mines | Discovered new exit (range 8) 1439 | -10/Mines | Identified exit to Materials 1445 | -10/Mines | Assisted by bots powering up and referring to "LRC-V3" 1543 | -10/Mines | Deemed a non-threat by the Exiles lab entrance 1543 | -10/Mines | Discovered new exit (range 5) 1572 | -10/Mines | Identified exit to Exiles 1578 | -10/Mines | Entered Exiles 1578 | -10/Exiles | Found Exiles lab abandoned 1578 | -10/Exiles | Accompanied by 3 allies 2003 | -10/Exiles | Discovered new exit (range 14) 2015 | -10/Exiles | Identified exit to Mines 2016 | -10/Exiles | Entered Mines 2016 | -9/Mines | Accompanied by 3 allies 2017 | -9/Mines | Assembled infested the area 2025 | -9/Mines | Destroyed by as-12364 with Assembled Heavy Rifle Last Messages --------------- 01771_ Connecting with EX-Vault Access... 01778_ B5A0NSXOMVD>R6CZ|VXM=SUSFJPAM V =W> 01915_ System corrupted: Matter fused (-6). 01915_ Dropped Med. Storage Unit. 01919_ Extracted 18 energy. 01920_ Acquired Hcp. Battery. 01921_ Extracted 15 energy. 01922_ Acquired Hcp. Battery. 01978_ Extracted 16 matter. 01980_ Acquired Hcp. Matter Pod. 01991_ System corrupted: Wheel fused. 02003_ EXIT=FOUND 02015_ EXIT=IDENTIFIED: MINES LOCATION=MINES GOAL=ESCAPE 02017_ ALERT: Infestation in the mines, dispatching Demolisher response squad. 02017_ Trooper 1b destroyed. 02021_ as-08302 destroyed. 02022_ Trooper 1a destroyed. 02024_ Mercenary 1a destroyed. Map ----- +----------------------------------------------------+ | | | | | | | | | | | | | | | ?????????????????????????????????????????????????? | | ?????????????????????????????????????????????????? | | ?????????????????????????????????????????????????? | | ?????????????????????????????????????????????????? | | ?????????????????????????????????????????????????? | | ?????????????????????????????????????????????????? | | ??????????????????######?????????????????????????? | | ?????????????????## ##????????????????????????? | | ?????????????????# #????????????????????????? | | ?????????????????? ###??????????????????????? | | ???????##?????????# """ ???????????????????????? | | ?????### ####??## """ #????????????????????????? | | ?????# a a ## """ ##???????????????????????? | | ??????? !%[ aa aa a ##????#?????????????????? | | ?????????????# aa %% #### ###### ?????????? | | ?????????????# a%!a ?????????? | | ?????????????## ?????????? | | ??????????????# ### #???????????????? | | ??????????????# ##?## @ ##???????????????? | | ?????????????# ????###### #????????????????? | | ?????????????# ???????????? #????????????????? | | ?????????????# ?????????????? #???????????????? | | ?????????????## ???????????????????????????????? | | ??????????????## ???????????????????????????????? | | ???????????????# ???????????????????????????????? | | ???????????????# ???????????????????????????????? | | ???????????????##????????????????????????????????? | | ?????????????????????????????????????????????????? | | ?????????????????????????????????????????????????? | | ?????????????????????????????????????????????????? | | ?????????????????????????????????????????????????? | | ?????????????????????????????????????????????????? | | ?????????????????????????????????????????????????? | | ?????????????????????????????????????????????????? | | ?????????????????????????????????????????????????? | | ?????????????????????????????????????????????????? | | ?????????????????????????????????????????????????? | | ?????????????????????????????????????????????????? | | ?????????????????????????????????????????????????? | | ?????????????????????????????????????????????????? | | ?????????????????????????????????????????????????? | | ?????????????????????????????????????????????????? | | ?????????????????????????????????????????????????? | +----------------------------------------------------+ Best States ------------- Heat Dissipation 25 Energy Generation 10 Energy Capacity 125 Matter Stores 300 Matter Capacity 300 Sight Range 16 Terrain Scan Density 10 Evasion (%) 44 Recoil Reduction 2 Item Schematics ----------------- None Robot Schematics ------------------ None Fabricated ------------ Nothing Alien Tech Used ----------------- None Achievements -------------- None Challenges ------------ None Game ------ Seed FactoryAlertBeam Manual? 0 Play Time 00:22:13 Cumulative 38.6 hours Start 2023.04.12 @ 07:25:12 End 2023.04.12 @ 07:47:16 Sessions 1 Manual Loads 0 Difficulty Rogue Special Mode None Game No. 30 Rogue 30 Adventurer 0 Explorer 0 Win Type - Total 1 Types 1/0/0/0/0/0/0/0/0 Lore% 45 Gallery% 38 Achievement% 37 Wizard Run 0 Options --------- ASCII 0 Keyboard 0 Movement Numpad Keybinds 0 Fullscreen 1 Font 14/SmallcapsGlow Map View 84x54 Tactical HUD 1 Map Filters NONE Filters NONE Steam 1 RUN: e348c72d-a1ab-4503-8419-d449fce6c67d